fUSD/lending_fUSD_20250209
["ID","MTS","AMOUNT","RATE_DAILY","PERIOD"]
[352403462,1739083872766,-151.0,0.00014,2]
[352403463,1739083872775,-272.344256,0.00014,2]
[352403464,1739083872784,-272.344256,0.00014,2]
[352403465,1739083872793,-280.167532,0.00014,2]
[352403466,1739083872804,-280.167532,0.00014,2]
[352403467,1739083872815,-4545.602903,0.00014,2]
[352403468,1739083872825,-4545.602903,0.00014,2]
[352403469,1739083872835,-280.167532,0.00014,2]
[352403470,1739083872845,-280.167532,0.00014,2]
[352403471,1739083872855,-4545.602903,0.00014,2]
[352403472,1739083872865,-4545.602903,0.00014,2]
[352403473,1739083872874,-151.0,0.00014,2]
[352403474,1739083872883,-151.0,0.00014,2]
[352403475,1739083872893,-3029.871539,0.00014,2]
[352403476,1739083872903,-3029.871539,0.00014,2]
[352403477,1739083872913,-3029.871539,0.00014,2]
[352403478,1739083872923,-3029.871539,0.00014,2]
[352403479,1739083872932,-151.0,0.00014,2]
[352403480,1739083872942,-151.0,0.00014,2]
[352403481,1739083872952,-151.0,0.00014,2]
[352403482,1739083872965,-151.0,0.00014,2]
[352403483,1739083872974,-151.0,0.00014,2]
[352403484,1739083872983,-151.0,0.00014,2]
[352403485,1739083872992,-2544.434769,0.00014,2]
[352403486,1739083873002,-2544.434769,0.00014,2]
[352403487,1739083873011,-2544.434769,0.00014,2]
[352403488,1739083873021,-2544.434769,0.00014,2]
[352403489,1739083873031,-564.184907,0.00014,2]
[352403490,1739083873041,-564.184907,0.00014,2]
[352403491,1739083873052,-564.184907,0.00014,2]
[352403492,1739083873063,-564.184907,0.00014,2]
[352403493,1739083873072,-151.0,0.00014,2]
[352403494,1739083873081,-151.0,0.00014,2]
[352403495,1739083873091,-476.402173,0.00014,2]
[352403496,1739083873100,-476.402173,0.00014,2]
[352403497,1739083873109,-476.402173,0.00014,2]
[352403498,1739083873118,-476.402173,0.00014,2]
[352403499,1739083873128,-307.705384,0.00014,2]
[352403500,1739083873138,-307.705384,0.00014,2]
[352403501,1739083873147,-307.705384,0.00014,2]
[352403502,1739083873156,-307.705384,0.00014,2]
[352403503,1739083873165,-336.0,0.00014,2]
[352403504,1739083873175,-336.0,0.00014,2]
[352403505,1739083873184,-296.678951,0.00014,2]
[352403506,1739083873193,-336.0,0.00014,2]
[352403507,1739083873202,-296.678951,0.00014,2]
[352403508,1739083873211,-336.0,0.00014,2]
[352403509,1739083873221,-296.678951,0.00014,2]
[352403510,1739083873231,-296.678951,0.00014,2]
[352403511,1739083873240,-441.979198,0.00014,2]
[352403512,1739083873249,-441.979198,0.00014,2]
[352403513,1739083873259,-441.979198,0.00014,2]
[352403514,1739083873267,-441.979198,0.00014,2]
[352403515,1739083873277,-435.980869,0.00014,2]
[352403516,1739083873286,-435.980869,0.00014,2]
[352403517,1739083873295,-435.980869,0.00014,2]
[352403518,1739083873304,-435.980869,0.00014,2]
[352403519,1739083873313,-155.378109,0.00014,2]
[352403520,1739083873322,-155.378109,0.00014,2]
[352403521,1739083873331,-10000.0,0.00014,2]
[352403522,1739083873341,-10000.0,0.00014,2]
[352403523,1739083873350,-155.378109,0.00014,2]
[352403524,1739083873360,-155.378109,0.00014,2]
[352403525,1739083873369,-10000.0,0.00014,2]
[352403526,1739083873378,-10000.0,0.00014,2]
[352403527,1739083873387,-10000.0,0.00014,2]
[352403528,1739083873397,-10000.0,0.00014,2]
[352403529,1739083873406,-10000.0,0.00014,2]
[352403530,1739083873415,-10000.0,0.00014,2]
[352403531,1739083873425,-10000.0,0.00014,2]
[352403532,1739083873434,-10000.0,0.00014,2]
[352403533,1739083873444,-1686.274765,0.00014,2]
[352403534,1739083873453,-1686.274765,0.00014,2]
[352403535,1739083873462,-1686.274765,0.00014,2]
[352403536,1739083873471,-1686.274765,0.00014,2]
[352403537,1739083873481,-151.630777,0.00014,2]
[352403538,1739083873490,-842.311692,0.00014,2]
[352403539,1739083873500,-842.311692,0.00014,2]
[352403540,1739083873509,-842.311692,0.00014,2]
[352403541,1739083873519,-842.311692,0.00014,2]
[352403542,1739083873528,-486.764883,0.00014,2]
[352403543,1739083873538,-486.764883,0.00014,2]
[352403544,1739083873548,-486.764883,0.00014,2]
[352403545,1739083873560,-486.764883,0.00014,2]
[352403546,1739083873570,-198.528824,0.00014,2]
[352403547,1739083873579,-198.528824,0.00014,2]
[352403548,1739083873588,-198.528824,0.00014,2]
[352403549,1739083873598,-198.528824,0.00014,2]
[352403550,1739083873608,-762.956412,0.00014,2]
[352403551,1739083873617,-762.956412,0.00014,2]
[352403552,1739083873627,-762.956412,0.00014,2]
[352403553,1739083873636,-762.956412,0.00014,2]
[352403554,1739083873646,-151.0,0.00014,2]
[352403555,1739083873655,-151.0,0.00014,2]
[352403556,1739083873665,-151.0,0.00014,2]
[352403557,1739083873675,-151.0,0.00014,2]
[352403558,1739083873684,-162.904034,0.00014,2]
[352403559,1739083873693,-151.0,0.00014,2]
[352403560,1739083873703,-283.179662,0.00014,2]
[352403561,1739083873712,-2507.573527,0.00014,2]
[352403562,1739083873727,-2507.573527,0.00014,2]
[352403563,1739083873740,-2507.573527,0.00014,2]
[352403564,1739083873750,-2507.573527,0.00014,2]
[352403565,1739083873759,-151.0,0.00014,2]
[352403566,1739083873768,-151.0,0.00014,2]
[352403567,1739083873778,-209.614751,0.00014,2]
[352403568,1739083873788,-209.614751,0.00014,2]
[352403569,1739083873797,-209.614751,0.00014,2]
[352403570,1739083873808,-209.614751,0.00014,2]
[352403571,1739083873817,-373.024451,0.00014,2]
[352403572,1739083873826,-373.024451,0.00014,2]
[352403573,1739083873836,-373.024451,0.00014,2]
[352403574,1739083873846,-373.024451,0.00014,2]
[352403575,1739083873856,-457.606994,0.00014,2]
[352403576,1739083873866,-457.606994,0.00014,2]
[352403577,1739083873875,-457.606994,0.00014,2]
[352403578,1739083873885,-457.606994,0.00014,2]
[352403579,1739083873895,-3955.508375,0.00014,2]
[352403580,1739083873904,-3955.508375,0.00014,2]
[352403581,1739083873913,-3955.508375,0.00014,2]
[352403582,1739083873922,-3955.508375,0.00014,2]
[352403583,1739083873931,-151.0,0.00014,2]
[352403584,1739083873940,-151.0,0.00014,2]
[352403585,1739083873951,-1357.93,0.00014095,2]
[352403586,1739083873962,-3022.76552531,0.000141,2]
[352403587,1739083873972,-151.0,0.000141,2]
[352403588,1739083873981,-151.0,0.000141,2]
[352403589,1739083873990,-162.02358,0.000141,2]
[352403590,1739083873999,-162.02358,0.000141,2]
[352403591,1739083874008,-476.073194,0.000141,2]
[352403592,1739083874017,-476.073194,0.000141,2]
[352403593,1739083874026,-260.807386,0.000141,2]
[352403594,1739083874035,-151.0,0.000141,2]
[352403595,1739083874044,-260.807386,0.000141,2]
[352403596,1739083874055,-691.552167,0.000141,2]
[352403597,1739083874064,-691.552167,0.000141,2]
[352403598,1739083874073,-719.28095,0.000141,2]
[352403599,1739083874082,-719.28095,0.000141,2]
[352403600,1739083874091,-462.25,0.000141,2]
[352403601,1739083874101,-462.25,0.000141,2]
[352403602,1739083874110,-173.554477,0.000141,2]
[352403603,1739083874119,-173.554477,0.000141,2]
[352403604,1739083874128,-151.0,0.000141,2]
[352403605,1739083874137,-272.344256,0.000141,2]
[352403606,1739083874146,-272.344266,0.000141,2]
[352403607,1739083874155,-151.0,0.000141,2]
[352403608,1739083874165,-535.48590837,0.000141,2]
[352403609,1739083874174,-200.0,0.000141,2]
[352403610,1739083874183,-152.0,0.00014152,9]
[352403611,1739083874192,-200.0,0.000142,2]
[352403612,1739083874201,-1357.93,0.00014232,2]
[352403613,1739083874211,-200.0,0.00014241,2]
[352403614,1739083874221,-1000.0,0.00014247,2]
[352403615,1739083874230,-1000.0,0.00014247,2]
[352403616,1739083874240,-1000.0,0.00014247,2]
[352403617,1739083874249,-691.46909223,0.00014247,2]
[352403618,1739083874259,-1000.0,0.00014247,2]
[352403619,1739083874272,-240.61846166,0.00014247,2]
[352403620,1739083874283,-1000.0,0.00014247,2]
[352403621,1739083874292,-2544.434769,0.00014275,2]
[352403622,1739083874301,-2544.434769,0.00014275,2]
[352403623,1739083874311,-564.184907,0.00014275,2]
[352403624,1739083874320,-564.184907,0.00014275,2]
[352403625,1739083874329,-151.0,0.00014275,2]
[352403626,1739083874338,-476.402173,0.00014275,2]
[352403627,1739083874347,-476.402173,0.00014275,2]
[352403628,1739083874357,-307.705384,0.00014275,2]
[352403629,1739083874366,-307.705384,0.00014275,2]
[352403630,1739083874375,-336.0,0.00014275,2]
[352403631,1739083874385,-296.678951,0.00014275,2]
[352403632,1739083874394,-336.0,0.00014275,2]
[352403633,1739083874404,-296.678951,0.00014275,2]
[352403634,1739083874413,-441.979198,0.00014275,2]
[352403635,1739083874422,-441.979198,0.00014275,2]
[352403636,1739083874432,-435.980869,0.00014275,2]
[352403637,1739083874441,-435.980869,0.00014275,2]
[352403638,1739083874451,-155.378109,0.00014275,2]
[352403639,1739083874460,-10000.0,0.00014275,2]
[352403640,1739083874469,-155.378109,0.00014275,2]
[352403641,1739083874479,-10000.0,0.00014275,2]
[352403642,1739083874488,-10000.0,0.00014275,2]
[352403643,1739083874500,-10000.0,0.00014275,2]
[352403644,1739083874510,-10000.0,0.00014275,2]
[352403645,1739083874520,-842.311692,0.00014275,2]
[352403646,1739083874529,-842.311692,0.00014275,2]
[352403647,1739083874538,-198.528824,0.00014275,2]
[352403648,1739083874547,-198.528824,0.00014275,2]
[352403649,1739083874558,-762.956412,0.00014275,2]
[352403650,1739083874568,-762.956419,0.00014275,2]
[352403651,1739083874577,-151.0,0.00014275,2]
[352403652,1739083874586,-151.0,0.00014275,2]
[352403653,1739083874596,-2507.573527,0.00014275,2]
[352403654,1739083874604,-2507.573527,0.00014275,2]
[352403655,1739083874613,-151.0,0.00014275,2]
[352403656,1739083874623,-209.614751,0.00014275,2]
[352403657,1739083874631,-209.61475748,0.00014275,2]
[352403658,1739083874640,-373.024451,0.00014275,2]
[352403659,1739083874649,-373.024451,0.00014275,2]
[352403660,1739083874658,-457.606994,0.00014275,2]
[352403661,1739083874668,-457.607004,0.00014275,2]
[352403662,1739083874677,-3955.508375,0.00014275,2]
[352403663,1739083874687,-3955.508375,0.00014275,2]
[352403664,1739083874696,-151.0,0.00014275,2]
[352403665,1739083874705,-6797.0,0.00014281,2]
[352403666,1739083874715,-1686.274765,0.000143,2]
[352403667,1739083874724,-1686.274765,0.000143,2]
[352403668,1739083874734,-486.764883,0.000143,2]
[352403669,1739083874743,-486.764883,0.000143,2]
[352403670,1739083874753,-3477.83972988,0.00014329,2]
[352403671,1739083874762,-3190.27974247,0.00014338,2]
[352403672,1739083874771,-1083.99,0.00014346,2]
[352403673,1739083874780,-1357.93,0.00014369,2]
[352403674,1739083874789,-198.528824,0.00014371,2]
[352403675,1739083874798,-198.528815,0.00014371,2]
[352403676,1739083874808,-2507.573527,0.00014371,2]
[352403677,1739083874817,-2507.573527,0.00014371,2]
[352403678,1739083874827,-3955.508375,0.00014371,2]
[352403679,1739083874836,-3955.508369,0.00014371,2]
[352403680,1739083874846,-151.0,0.00014371,2]
[352403681,1739083874855,-1200.57401377,0.0001438,2]
[352403682,1739083874865,-200.0,0.00014383,2]
[352403683,1739083874874,-9865.53363568,0.0001439,2]
[352403684,1739083874884,-895.449831,0.0001439,2]
[352403685,1739083874893,-895.449831,0.0001439,2]
[352403686,1739083874903,-151.0,0.0001439,2]
[352403687,1739083874912,-151.0,0.000144,2]
[352403688,1739083874921,-151.0,0.000144,2]
[352403689,1739083874930,-280.167532,0.000144,2]
[352403690,1739083874939,-4545.602903,0.000144,2]
[352403691,1739083874950,-280.167532,0.000144,2]
[352403692,1739083874965,-4545.602903,0.000144,2]
[352403693,1739083874974,-3029.871539,0.000144,2]
[352403694,1739083874982,-3029.871539,0.000144,2]
[352403695,1739083874992,-151.0,0.000144,2]
[352403696,1739083875002,-152.0,0.00014473,10]
[352403697,1739083875011,-151.0,0.00014475,2]
[352403698,1739083875020,-151.0,0.00014475,2]
[352403699,1739083875030,-151.0,0.00014475,2]
[352403700,1739083875039,-166.333187,0.00014475,2]
[352403701,1739083875049,-166.333187,0.00014475,2]
[352403702,1739083875061,-166.333187,0.00014475,2]
[352403703,1739083875071,-166.333187,0.00014475,2]
[352403704,1739083875081,-213.4702,0.00014475,2]
[352403705,1739083875090,-151.0,0.00014475,2]
[352403706,1739083875100,-151.0,0.00014475,2]
[352403707,1739083875109,-151.0,0.00014475,2]
[352403708,1739083875119,-151.0,0.00014475,2]
[352403709,1739083875129,-151.0,0.00014475,2]
[352403710,1739083875138,-151.0,0.00014475,2]
[352403711,1739083875148,-364.840937,0.00014475,2]
[352403712,1739083875157,-303.227568,0.00014475,2]
[352403713,1739083875167,-364.840937,0.00014475,2]
[352403714,1739083875176,-303.227568,0.00014475,2]
[352403715,1739083875185,-151.0,0.00014475,2]
[352403716,1739083875195,-151.0,0.00014475,2]
[352403717,1739083875204,-151.0,0.00014475,2]
[352403718,1739083875214,-290.94,0.00014475,2]
[352403719,1739083875224,-290.94,0.00014475,2]
[352403720,1739083875232,-497.355562,0.00014475,2]
[352403721,1739083875242,-151.0,0.00014475,2]
[352403722,1739083875251,-151.0,0.00014475,2]
[352403723,1739083875261,-497.355562,0.00014475,2]
[352403724,1739083875270,-151.0,0.00014475,2]
[352403725,1739083875279,-184.22718,0.00014475,2]
[352403726,1739083875289,-184.22718,0.00014475,2]
[352403727,1739083875298,-214.851962,0.00014475,2]
[352403728,1739083875309,-184.22718,0.00014475,2]
[352403729,1739083875318,-214.851962,0.00014475,2]
[352403730,1739083875328,-184.22718,0.00014475,2]
[352403731,1739083875337,-214.851962,0.00014475,2]
[352403732,1739083875346,-214.851962,0.00014475,2]
[352403733,1739083875355,-176.960047,0.00014475,2]
[352403734,1739083875364,-176.960047,0.00014475,2]
[352403735,1739083875374,-176.960047,0.00014475,2]
[352403736,1739083875383,-176.960047,0.00014475,2]
[352403737,1739083875392,-240.114655,0.00014475,2]
[352403738,1739083875401,-151.0,0.00014475,2]
[352403739,1739083875411,-216.223064,0.00014475,2]
[352403740,1739083875420,-162.02358,0.00014475,2]
[352403741,1739083875429,-162.02358,0.00014475,2]
[352403742,1739083875438,-162.02358,0.00014475,2]
[352403743,1739083875447,-162.023577,0.00014475,2]
[352403744,1739083875456,-476.073194,0.00014475,2]
[352403745,1739083875465,-476.073194,0.00014475,2]
[352403746,1739083875474,-476.073194,0.00014475,2]
[352403747,1739083875483,-476.073191,0.00014475,2]
[352403748,1739083875492,-260.807386,0.00014475,2]
[352403749,1739083875501,-260.807386,0.00014475,2]
[352403750,1739083875510,-151.0,0.00014475,2]
[352403751,1739083875519,-260.807386,0.00014475,2]
[352403752,1739083875529,-260.807389,0.00014475,2]
[352403753,1739083875538,-691.552167,0.00014475,2]
[352403754,1739083875547,-691.55217,0.00014475,2]
[352403755,1739083875558,-719.28095,0.00014475,2]
[352403756,1739083875567,-719.28095,0.00014475,2]
[352403757,1739083875706,-462.25,0.00014475,2]
[352403758,1739083875730,-462.25,0.00014475,2]
[352403759,1739083875739,-173.554477,0.00014475,2]
[352403760,1739083875749,-173.554477,0.00014475,2]
[352403761,1739083875758,-173.554477,0.00014475,2]
[352403762,1739083875767,-173.554476,0.00014475,2]
[352403763,1739083875777,-663.514568,0.00014475,2]
[352403764,1739083875786,-663.514568,0.00014475,2]
[352403765,1739083875796,-151.0,0.00014475,2]
[352403766,1739083875806,-772.296489,0.00014475,2]
[352403767,1739083875816,-280.167532,0.00014475,2]
[352403768,1739083875825,-4545.602903,0.00014475,2]
[352403769,1739083875835,-280.167539,0.00014475,2]
[352403770,1739083875845,-4545.602896,0.00014475,2]
[352403771,1739083875854,-151.0,0.00014475,2]
[352403772,1739083875863,-3029.871539,0.00014475,2]
[352403773,1739083875872,-3029.871539,0.00014475,2]
[352403774,1739083875882,-151.0,0.00014475,2]
[352403775,1739083875892,-151.0,0.00014475,2]
[352403776,1739083875901,-151.0,0.00014475,2]
[352403777,1739083875911,-2544.434769,0.00014475,2]
[352403778,1739083875920,-2544.434775,0.00014475,2]
[352403779,1739083875930,-564.184907,0.00014475,2]
[352403780,1739083875939,-564.184902,0.00014475,2]
[352403781,1739083875949,-151.0,0.00014475,2]
[352403782,1739083875962,-476.402173,0.00014475,2]
[352403783,1739083875971,-476.402164,0.00014475,2]
[352403784,1739083875980,-307.705384,0.00014475,2]
[352403785,1739083875990,-307.705378,0.00014475,2]
[352403786,1739083876000,-336.0,0.00014475,2]
[352403787,1739083876009,-296.678951,0.00014475,2]
[352403788,1739083876019,-336.0,0.00014475,2]
[352403789,1739083876029,-296.678946,0.00014475,2]
[352403790,1739083876039,-441.979198,0.00014475,2]
[352403791,1739083876049,-441.979194,0.00014475,2]
[352403792,1739083876060,-435.980869,0.00014475,2]
[352403793,1739083876069,-435.980869,0.00014475,2]
[352403794,1739083876079,-155.378109,0.00014475,2]
[352403795,1739083876089,-10000.0,0.00014475,2]
[352403796,1739083876098,-155.378104,0.00014475,2]
[352403797,1739083876108,-10000.0,0.00014475,2]
[352403798,1739083876117,-10000.0,0.00014475,2]
[352403799,1739083876127,-10000.0,0.00014475,2]
[352403800,1739083876137,-10000.0,0.00014475,2]
[352403801,1739083876146,-1686.274765,0.00014475,2]
[352403802,1739083876155,-1686.274765,0.00014475,2]
[352403803,1739083876164,-842.311692,0.00014475,2]
[352403804,1739083876174,-842.311693,0.00014475,2]
[352403805,1739083876184,-486.764883,0.00014475,2]
[352403806,1739083876193,-486.764883,0.00014475,2]
[352403807,1739083876203,-373.024451,0.00014475,2]
[352403808,1739083876212,-373.024447,0.00014475,2]
[352403809,1739083876222,-104801.0,0.00014475,2]
[352403810,1739083876231,-7284.76670432,0.00014486,2]
[352403811,1739083876241,-5005.0,0.000145,2]
[352403812,1739083876250,-151.0,0.000145,2]
[352403813,1739083876259,-151.0,0.000145,2]
[352403814,1739083876269,-151.0,0.000145,2]
[352403815,1739083876278,-364.840937,0.000145,2]
[352403816,1739083876288,-303.227568,0.000145,2]
[352403817,1739083876297,-364.840937,0.000145,2]
[352403818,1739083876308,-303.227568,0.000145,2]
[352403819,1739083876317,-497.355562,0.000145,2]
[352403820,1739083876327,-497.355562,0.000145,2]
[352403821,1739083876336,-1357.93,0.00014506,2]
[352403822,1739083876346,-200.0,0.00014527,2]
[352403823,1739083876355,-286.86821,0.00014571,2]
[352403824,1739083876365,-286.86821,0.00014571,2]
[352403825,1739083876374,-151.0,0.000146,2]
[352403826,1739083876383,-17180.4483887,0.000146,4]
[352403827,1739083876393,-663.514568,0.000146,2]
[352403828,1739083876402,-663.514568,0.000146,2]
[352403829,1739083876411,-151.0,0.000146,2]
[352403830,1739083876421,-772.296489,0.000146,2]
[352403831,1739083876430,-151.0,0.000146,2]
[352403832,1739083876440,-217.857689,0.000146,2]
[352403833,1739083876449,-424368.36497992,0.000146,2]
[352403834,1739083876459,-158.10474521,0.00014603,2]
[352403835,1739083876468,-1357.93,0.00014643,2]
[352403836,1739083876477,-151.08,0.00014656,2]
[352403837,1739083876487,-200.0,0.00014673,2]
[352403838,1739083876496,-31960.0,0.00014695,2]
[352403839,1739083876505,-63298.0,0.00014695,2]
[352403840,1739083876515,-158.10474521,0.00014712,2]
[352403841,1739083876524,-719.41,0.00014775,2]
[352403842,1739083876533,-1357.93,0.0001478,2]
[352403843,1739083876543,-152.0,0.00014795,11]
[352403844,1739083876552,-166.333187,0.000148,2]
[352403845,1739083876564,-166.333187,0.000148,2]
[352403846,1739083876573,-222.26738,0.000148,2]
[352403847,1739083876583,-151.0,0.000148,2]
[352403848,1739083876592,-151.0,0.000148,2]
[352403849,1739083876601,-170.630765,0.000148,2]
[352403850,1739083876610,-176.696701,0.000148,2]
[352403851,1739083876619,-198.937336,0.000148,2]
[352403852,1739083876629,-364.840937,0.000148,2]
[352403853,1739083876639,-303.227568,0.000148,2]
[352403854,1739083876648,-364.840937,0.000148,2]
[352403855,1739083876657,-303.227568,0.000148,2]
[352403856,1739083876667,-151.0,0.000148,2]
[352403857,1739083876676,-151.0,0.000148,2]
[352403858,1739083876685,-290.94,0.000148,2]
[352403859,1739083876695,-290.94,0.000148,2]
[352403860,1739083876704,-497.355562,0.000148,2]
[352403861,1739083876713,-151.0,0.000148,2]
[352403862,1739083876722,-497.355562,0.000148,2]
[352403863,1739083876731,-151.0,0.000148,2]
[352403864,1739083876741,-184.22718,0.000148,2]
[352403865,1739083876751,-214.851962,0.000148,2]
[352403866,1739083876760,-184.227183,0.000148,2]
[352403867,1739083876769,-214.851971,0.000148,2]
[352403868,1739083876779,-176.960047,0.000148,2]
[352403869,1739083876788,-176.960056,0.000148,2]
[352403870,1739083876797,-151.0,0.000148,2]
[352403871,1739083876810,-535.48590837,0.000148,2]
[352403872,1739083876819,-158.10474521,0.00014822,2]
[352403873,1739083876829,-696.62122938,0.0001485,2]
[352403874,1739083876840,-3941.36816,0.0001485,2]
[352403875,1739083876850,-158.10474521,0.00014904,2]
[352403876,1739083876859,-1357.93,0.00014917,2]
[352403877,1739083876869,-27308.21766473,0.0001498,15]
[352403878,1739083876878,-30000.0,0.00015,2]
[352403879,1739083876887,-30000.0,0.00015,2]
[352403880,1739083876896,-30000.0,0.00015,2]
[352403881,1739083876906,-642.00714973,0.00015,2]
[352403882,1739083876915,-4521.40785457,0.00015,10]
[352403883,1739083876925,-1960.15308572,0.00015,2]
[352403884,1739083876934,-10000.0,0.00015,10]
[352403885,1739083876943,-5288.70046628,0.00015,14]
[352403886,1739083876952,-18143.69023729,0.00015,2]
[352403887,1739083876964,-4913.98663381,0.00015,2]
[352403888,1739083876974,-24652.52629322,0.00015,2]
[352403889,1739083876983,-8058.0457529,0.00015,2]
[352403890,1739083876992,-815.03815169,0.00015,2]
[352403891,1739083877004,-300.0,0.00015,2]
[352403892,1739083877013,-424.29,0.00015,2]
[352403893,1739083877023,-30446.44,0.00015,2]
[352403894,1739083877032,-1018.29938918,0.00015,30]
[352403895,1739083877043,-900.0,0.00015,16]
[352403896,1739083877052,-286.86821,0.00015,2]
[352403897,1739083877063,-286.86821,0.00015,2]
[352403898,1739083877071,-166.333187,0.00015,2]
[352403899,1739083877080,-166.333187,0.00015,2]
[352403900,1739083877090,-166.333187,0.00015,2]
[352403901,1739083877099,-166.333196,0.00015,2]
[352403902,1739083877108,-151.0,0.00015,2]
[352403903,1739083877117,-151.0,0.00015,2]
[352403904,1739083877126,-303.227568,0.00015,2]
[352403905,1739083877136,-364.840937,0.00015,2]
[352403906,1739083877146,-303.227576,0.00015,2]
[352403907,1739083877155,-364.840945,0.00015,2]
[352403908,1739083877163,-151.0,0.00015,2]
[352403909,1739083877173,-290.94,0.00015,2]
[352403910,1739083877181,-290.94,0.00015,2]
[352403911,1739083877191,-497.355562,0.00015,2]
[352403912,1739083877200,-497.355554,0.00015,2]
[352403913,1739083877209,-151.0,0.00015,2]
[352403914,1739083877219,-663.514568,0.00015,2]
[352403915,1739083877228,-663.514569,0.00015,2]
[352403916,1739083877237,-163.776039,0.00015,2]
[352403917,1739083877246,-772.296487,0.00015,2]
[352403918,1739083877255,-151.0,0.00015,2]
[352403919,1739083877265,-600.0,0.00015,2]
[352403920,1739083877274,-600.0,0.00015,2]
[352403921,1739083877283,-1686.274765,0.00015,2]
[352403922,1739083877292,-1686.274765,0.00015,2]
[352403923,1739083877301,-10000.0,0.00015,2]
[352403924,1739083877312,-486.764883,0.00015,2]
[352403925,1739083877322,-10045.0,0.00015,2]
[352403926,1739083877331,-486.764883,0.00015,2]
[352403927,1739083877341,-150.31621735,0.00015,20]
[352403928,1739083877351,-158.10474521,0.00015014,2]
[352403929,1739083877360,-1357.93,0.00015054,2]
[352403930,1739083877369,-300.0,0.00015068,2]
[352403931,1739083877378,-158.10474521,0.00015096,2]
[352403932,1739083877387,-158889.56357663,0.000151,2]
[352403933,1739083877396,-151.0,0.000151,2]
[352403934,1739083877405,-151.0,0.000151,2]
[352403935,1739083877414,-235.233035,0.000151,2]
[352403936,1739083877423,-1686.274765,0.000151,2]
[352403937,1739083877432,-1686.274774,0.000151,2]
[352403938,1739083877442,-486.764883,0.000151,2]
[352403939,1739083877451,-486.764883,0.000151,2]
[352403940,1739083877461,-152.0,0.00015116,12]
[352403941,1739083877471,-218.18603948,0.00015116,5]
[352403942,1739083877480,-1225.76079804,0.00015146,15]
[352403943,1739083877489,-1357.93,0.00015191,2]
[352403944,1739083877499,-286.86821,0.000152,2]
[352403945,1739083877508,-286.86821,0.000152,2]
[352403946,1739083877517,-158.10474521,0.00015205,2]
[352403947,1739083877527,-1500.0,0.00015248,2]
[352403948,1739083877536,-1500.0,0.00015248,2]
[352403949,1739083877545,-1615.65528173,0.00015248,2]
[352403950,1739083877556,-1509.32999585,0.00015248,2]
[352403951,1739083877566,-1500.0,0.00015248,2]
[352403952,1739083877576,-158.10474521,0.00015288,2]
[352403953,1739083877586,-1517.64,0.000153,2]
[352403954,1739083877595,-175.17856856,0.00015313,2]
[352403955,1739083877604,-1357.93,0.00015328,2]
[352403956,1739083877613,-500.0,0.00015357,2]
[352403957,1739083877622,-500.0,0.00015397,2]
[352403958,1739083877632,-158.10474521,0.00015397,2]
[352403959,1739083877642,-15975.13666816,0.000154,2]
[352403960,1739083877651,-485.81249509,0.000154,2]
[352403961,1739083877660,-500.0,0.00015457,2]